bitfinex/quotes_BTCUSD_20250908
["timestamp","ask_amount","ask_price","bid_price","bid_amount"]
[1757371724937,1.1420146,112290.0,112280.0,0.0095201]
[1757371739741,1.1420146,112290.0,112280.0,0.0145501]
[1757371739742,1.1400446,112290.0,112280.0,0.0145501]
[1757371739992,1.1420246,112290.0,112280.0,0.0145501]
[1757371740205,1.1420246,112290.0,112280.0,0.0095201]
[1757371741002,0.79938663,112290.0,112280.0,0.0095201]
[1757371741235,1.05010861,112290.0,112280.0,0.0095201]
[1757371743438,1.05141861,112290.0,112280.0,0.0095201]
[1757371744084,1.20005861,112290.0,112280.0,0.0095201]
[1757371745510,1.56757944,112290.0,112280.0,1e-08]
[1757371745704,1.68209543,112290.0,112280.0,1e-08]
[1757371747478,1.65721257,112290.0,112280.0,1e-08]
[1757371747893,1.65585637,112290.0,112280.0,1e-08]
[1757371748188,1.65449452,112290.0,112280.0,1e-08]
[1757371748593,0.51812611,112280.0,112270.0,1e-08]
[1757371748804,1.19323606,112280.0,112270.0,0.00013862]
[1757371749087,1.19652606,112280.0,112270.0,0.00013862]
[1757371749322,1.22325973,112280.0,112270.0,0.00013862]
[1757371750855,1.22525973,112280.0,112270.0,0.00013862]
[1757371751910,1.22625973,112280.0,112270.0,0.00013862]
[1757371752313,1.22525973,112280.0,112270.0,0.00013862]
[1757371752900,1.22825973,112280.0,112270.0,0.00013862]
[1757371754114,0.54029779,112270.0,112260.0,0.1004]
[1757371754351,0.97485175,112270.0,112260.0,0.10052302]
[1757371754554,1.06874774,112270.0,112260.0,0.10052302]
[1757371754966,1.09548141,112270.0,112260.0,0.10052302]
[1757371755457,1.00456542,112270.0,112260.0,0.10052302]
[1757371756275,1.00556542,112270.0,112260.0,0.10052302]
[1757371756792,0.66292745,112270.0,112260.0,0.10052302]
[1757371757002,0.66094745,112270.0,112260.0,0.10554302]
[1757371757387,0.66292745,112270.0,112260.0,0.10554302]
[1757371758173,0.66292745,112270.0,112260.0,0.10348302]
[1757371759323,0.66292745,112270.0,112260.0,0.10052302]
[1757371759628,0.69799476,112270.0,112260.0,0.10052302]
[1757371761490,0.69601476,112270.0,112260.0,0.10554302]
[1757371762107,0.69799476,112270.0,112260.0,0.10554302]
[1757371762308,0.69799476,112270.0,112260.0,0.10052302]
[1757371763778,1.04063273,112270.0,112260.0,0.10052302]
[1757371765823,1.18927273,112270.0,112260.0,0.10052302]
[1757371765954,1.19058273,112270.0,112260.0,0.10052302]
[1757371767696,1.18927273,112270.0,112260.0,0.10052302]
[1757371768126,1.04063273,112270.0,112260.0,0.10052302]
[1757371768788,0.69799476,112270.0,112260.0,0.10052302]
[1757371768934,1.04063273,112270.0,112260.0,0.10052302]
[1757371769140,1.03941573,112270.0,112260.0,0.10052302]
[1757371769565,0.69677776,112270.0,112260.0,0.10052302]
[1757371769740,1.03941573,112270.0,112260.0,0.10348302]
[1757371770345,1.03950427,112270.0,112260.0,0.10052302]
[1757371771306,1.03950427,112270.0,112260.0,0.09930602]
[1757371771738,1.18814427,112270.0,112260.0,0.09930602]
[1757371772709,1.03950427,112270.0,112260.0,0.09930602]
[1757371772934,1.18814427,112270.0,112260.0,0.09930602]
[1757371776443,1.18945427,112270.0,112260.0,0.09930602]
[1757371778893,1.21567379,112270.0,112260.0,0.09930602]
[1757371783349,1.21436379,112270.0,112260.0,0.09930602]
[1757371783941,1.06572379,112270.0,112260.0,0.09930602]
[1757371784162,0.69677776,112270.0,112260.0,0.09930602]
[1757371784555,1.15307696,112270.0,112260.0,0.09930602]
[1757371788258,1.49580347,112270.0,112260.0,0.09930602]
[1757371800175,1.49576347,112270.0,112260.0,0.09930602]
[1757371800572,1.49378347,112270.0,112260.0,0.10445602]
[1757371800770,1.49576347,112270.0,112260.0,0.10445602]
[1757371800977,1.24495295,112270.0,112260.0,0.10445602]
[1757371801162,1.24495295,112270.0,112260.0,0.10230602]
[1757371801357,1.24495295,112270.0,112260.0,0.09930602]
[1757371801567,1.58767946,112270.0,112260.0,0.09930602]
[1757371802557,1.58898946,112270.0,112260.0,0.09930602]
[1757371802771,1.58767946,112270.0,112260.0,0.09930602]
[1757371803003,0.90222644,112270.0,112260.0,0.10230602]
[1757371803231,1.58767946,112270.0,112260.0,0.10230602]
[1757371805384,1.58767946,112270.0,112260.0,0.09930602]
[1757371822873,1.58898946,112270.0,112260.0,0.09930602]
[1757371823499,1.58767946,112270.0,112260.0,0.09930602]
[1757371826030,1.24495295,112270.0,112260.0,0.09930602]
[1757371828377,1.58767946,112270.0,112260.0,0.09930602]
[1757371830457,1.24500856,112270.0,112260.0,0.09930602]
[1757371846539,1.09640856,112270.0,112260.0,0.09930602]
[1757371846715,1.24496856,112270.0,112260.0,0.09930602]
[1757371846917,1.24496856,112270.0,112260.0,0.10227602]
[1757371852573,1.24496856,112270.0,112260.0,0.09930602]
[1757371856753,0.53909666,112260.0,112250.0,1e-08]
[1757371856974,1.55705288,112260.0,112250.0,0.00013869]
[1757371857191,1.55915288,112260.0,112250.0,0.00013869]
[1757371857416,1.56035288,112260.0,112250.0,0.00013869]
[1757371857626,1.57372288,112260.0,112250.0,0.00013869]
[1757371859182,1.61288287,112260.0,112250.0,0.00013869]
[1757371860670,1.61168287,112260.0,112250.0,0.00013869]
[1757371860925,1.61164287,112260.0,112250.0,0.00013869]
[1757371868809,1.61284287,112260.0,112250.0,0.00013869]
[1757371869009,1.61164287,112260.0,112250.0,0.00013869]
[1757371872497,0.51817371,112250.0,112240.0,0.0004]
[1757371872684,1.10139182,112250.0,112240.0,0.00044618]
[1757371872920,1.10348182,112250.0,112240.0,0.00044618]
[1757371873350,1.00263691,112250.0,112240.0,0.00044618]
[1757371873749,1.00263691,112250.0,112240.0,0.00144618]
[1757371874419,1.18999192,112250.0,112240.0,0.00144618]
[1757371874631,1.19120192,112250.0,112240.0,1e-08]
[1757371876403,0.19912841,112240.0,112230.0,0.0104]
[1757371876659,0.78234652,112240.0,112230.0,0.0104]
[1757371876869,0.78442652,112240.0,112230.0,0.0104]
[1757371877281,0.81116588,112240.0,112230.0,0.0104]
[1757371877459,1.15116588,112240.0,112230.0,0.0104]
[1757371877699,1.24308187,112240.0,112230.0,0.0104]
[1757371877906,1.24508187,112240.0,112230.0,0.0104]
[1757371878315,0.17820547,112230.0,112220.0,0.03249]
[1757371878519,0.52239414,112230.0,112220.0,0.03249]
[1757371878735,0.52098759,112230.0,112220.0,0.03453]
[1757371879109,0.98172294,112230.0,112220.0,0.03453]
[1757371879902,0.98272294,112230.0,112220.0,0.03453]
[1757371880483,0.99154762,112230.0,112220.0,0.03453]
[1757371881100,0.99154762,112230.0,112220.0,0.00508]
[1757371881337,0.99154762,112230.0,112220.0,0.00304]
[1757371882411,0.17822135,112220.0,112210.0,0.15196]
[1757371882680,0.17822135,112220.0,112210.0,0.154]
[1757371882889,0.52100347,112220.0,112210.0,0.154]
[1757371883302,0.17822135,112220.0,112210.0,0.154]
[1757371883516,0.52100347,112220.0,112210.0,0.154]
[1757371883719,0.54774512,112220.0,112210.0,0.154]
[1757371884492,0.54774512,112220.0,112210.0,0.155]
[1757371886192,0.204963,112220.0,112210.0,0.155]
[1757371886394,0.54774512,112220.0,112210.0,0.155]
[1757371892401,0.54795888,112220.0,112210.0,0.155]
[1757371895572,0.204963,112220.0,112210.0,0.155]
[1757371895834,0.54795888,112220.0,112210.0,0.155]
[1757371896084,0.54795888,112220.0,112210.0,0.15722796]
[1757371898757,0.204963,112220.0,112210.0,0.15722796]
[1757371898993,0.54795888,112220.0,112210.0,0.15722796]
[1757371901100,0.204963,112220.0,112210.0,0.15722796]
[1757371901311,0.17822135,112220.0,112210.0,0.15722796]
[1757371902747,0.52121723,112220.0,112210.0,0.15722796]
[1757371907661,0.17822135,112220.0,112210.0,0.15722796]
[1757371915722,0.17822135,112220.0,112210.0,0.155]
[1757371918292,0.17822135,112220.0,112210.0,0.00648]
[1757371918487,0.17822135,112220.0,112210.0,0.15496]
[1757371919920,0.52121723,112220.0,112210.0,0.15496]
[1757371925873,0.17822135,112220.0,112210.0,0.15496]
[1757371926103,0.52121723,112220.0,112210.0,0.15496]
[1757371926905,0.86421311,112220.0,112210.0,0.15496]
[1757371927350,0.52121723,112220.0,112210.0,0.15496]
[1757371929720,0.17822135,112220.0,112210.0,0.15496]
[1757371929937,0.52121723,112220.0,112210.0,0.15496]
[1757371932689,0.17822135,112220.0,112210.0,0.15496]
[1757371932904,0.52121723,112220.0,112210.0,0.15496]
[1757371944205,0.51906275,112220.0,112210.0,0.15496]
[1757371945831,0.51906275,112220.0,112210.0,0.15492]
[1757371950265,0.51906275,112220.0,112210.0,0.15384624]
[1757371952486,0.54581886,112220.0,112210.0,0.15384624]
[1757371958365,0.63773485,112220.0,112210.0,0.00540624]
[1757371958571,1.23356109,112220.0,112210.0,0.001]
[1757371959234,1.26104311,112220.0,112210.0,0.001]
[1757371959439,1.26104311,112220.0,112210.0,1e-08]
[1757371959872,0.53917605,112210.0,112200.0,0.0026]
[1757371960089,0.97410291,112210.0,112200.0,0.0026]
[1757371960349,0.97619291,112210.0,112200.0,0.0026]
[1757371960591,1.00294017,112210.0,112200.0,0.0026]
[1757371961050,1.00294017,112210.0,112200.0,0.00273873]
[1757371961265,1.15138017,112210.0,112200.0,0.00273873]
[1757371962630,1.15338017,112210.0,112200.0,0.00273873]
[1757371962830,1.15438017,112210.0,112200.0,0.00273873]
[1757371963955,1.19379409,112210.0,112200.0,0.00273873]
[1757371967799,1.04535409,112210.0,112200.0,0.00273873]
[1757371968095,1.19379409,112210.0,112200.0,0.00273873]
[1757371968347,0.85078322,112210.0,112200.0,0.00273873]
[1757371968576,1.19379409,112210.0,112200.0,0.00273873]
[1757371975858,1.19379409,112210.0,112200.0,0.00476873]
[1757371976083,1.19379409,112210.0,112200.0,0.00789873]
[1757371977586,1.2569071,112210.0,112200.0,0.00273873]
[1757371978498,1.19379409,112210.0,112200.0,0.00273873]
[1757371980485,0.85078322,112210.0,112200.0,0.00273873]
[1757371980693,1.19379409,112210.0,112200.0,0.00273873]
[1757371986237,1.19379409,112210.0,112200.0,0.00476873]
[1757371986447,1.19379409,112210.0,112200.0,0.00789873]
[1757371986664,1.04535409,112210.0,112200.0,0.00789873]
[1757371986874,1.04326409,112210.0,112200.0,0.00789873]
[1757371987289,0.6608393,112210.0,112200.0,0.00789873]
[1757371987495,1.00385017,112210.0,112200.0,0.00789873]
[1757371987928,1.00583017,112210.0,112200.0,0.00789873]
[1757371991529,0.6628193,112210.0,112200.0,0.00789873]
[1757371991656,1.00583017,112210.0,112200.0,0.00789873]
[1757371993273,1.15423017,112210.0,112200.0,0.00789873]
[1757371994583,1.15225017,112210.0,112200.0,0.00789873]
[1757371994997,1.00385017,112210.0,112200.0,0.00789873]
[1757372007207,1.00583017,112210.0,112200.0,0.00789873]
[1757372007450,1.09774616,112210.0,112200.0,0.00586873]
[1757372007671,1.09774616,112210.0,112200.0,0.00795873]
[1757372009010,1.24610616,112210.0,112200.0,0.00795873]
[1757372009337,1.15246661,112210.0,112200.0,0.00709973]
[1757372012551,1.49571768,112210.0,112200.0,0.00187973]
[1757372014381,1.15258671,112210.0,112200.0,0.00187973]
[1757372016698,1.49571768,112210.0,112200.0,0.00187973]
[1757372024559,1.15258671,112210.0,112200.0,0.00187973]
[1757372027299,1.15258671,112210.0,112200.0,0.00487973]
[1757372027523,1.49567768,112210.0,112200.0,0.00487973]
[1757372027938,1.15254671,112210.0,112200.0,0.00487973]
[1757372030290,1.15254671,112210.0,112200.0,0.00697973]
[1757372031760,0.80941574,112210.0,112200.0,0.00697973]
[1757372031966,1.15254671,112210.0,112200.0,0.00697973]
[1757372032912,1.00422671,112210.0,112200.0,0.00697973]
[1757372033184,1.00224671,112210.0,112200.0,0.00697973]
[1757372034352,0.63817692,112210.0,112200.0,0.00697973]
[1757372034740,0.98130789,112210.0,112200.0,0.00697973]
[1757372035276,0.63817692,112210.0,112200.0,0.00697973]
[1757372035479,0.98130789,112210.0,112200.0,0.00697973]
[1757372045747,0.98328789,112210.0,112200.0,0.00697973]
[1757372049805,0.98328789,112210.0,112200.0,0.00487973]
[1757372050019,0.66713418,112210.0,112200.0,0.00697973]
[1757372050236,1.01026515,112210.0,112200.0,0.00697973]
[1757372057274,1.01026515,112210.0,112200.0,0.00685973]
[1757372061698,1.01026515,112210.0,112200.0,0.00187973]
[1757372061923,1.15854515,112210.0,112200.0,0.00187973]
[1757372062120,1.16053515,112210.0,112200.0,0.00187973]
[1757372062344,1.50366612,112210.0,112200.0,0.00187973]
[1757372063008,1.50167612,112210.0,112200.0,0.00187973]
[1757372063395,1.15854515,112210.0,112200.0,0.00187973]
[1757372063919,1.50167612,112210.0,112200.0,0.00187973]
[1757372065072,1.15854515,112210.0,112200.0,0.00187973]
[1757372071272,0.81541418,112210.0,112200.0,0.00187973]
[1757372071431,1.15854515,112210.0,112200.0,0.00187973]
[1757372072430,1.15855222,112210.0,112200.0,0.00187973]
[1757372072628,0.81541418,112210.0,112200.0,0.00187973]
[1757372072834,1.15855222,112210.0,112200.0,0.00187973]
[1757372074081,1.15715197,112210.0,112200.0,0.00187973]
[1757372074288,1.15715197,112210.0,112200.0,0.00483973]
[1757372076213,0.81203393,112210.0,112200.0,0.00681973]
[1757372076428,0.78505667,112210.0,112200.0,0.00681973]
[1757372076643,1.12819471,112210.0,112200.0,0.00681973]
[1757372076768,1.15517197,112210.0,112200.0,0.00681973]
[1757372076996,1.15715197,112210.0,112200.0,0.00681973]
[1757372077893,1.00887197,112210.0,112200.0,0.00681973]
[1757372078555,1.00689197,112210.0,112200.0,0.00681973]
[1757372080174,1.00689197,112210.0,112200.0,0.00509449]
[1757372081635,1.00887197,112210.0,112200.0,0.00509449]
[1757372082271,0.97991471,112210.0,112200.0,0.00509449]
[1757372082487,0.20486068,112210.0,112200.0,0.00509449]
[1757372082922,0.20486068,112210.0,112200.0,0.15333449]
[1757372083586,0.20486068,112210.0,112200.0,0.15556265]
[1757372083801,0.17711342,112210.0,112200.0,0.15556265]
[1757372084015,0.17511342,112210.0,112200.0,0.15556265]
[1757372084639,0.17511342,112210.0,112200.0,0.18230444]
[1757372084841,0.17511342,112210.0,112200.0,0.18007628]
[1757372090141,0.17511342,112210.0,112200.0,0.03183628]
[1757372090374,0.17511342,112210.0,112200.0,0.18007628]
[1757372090660,0.17511342,112210.0,112200.0,0.03183628]
[1757372090880,0.17511342,112210.0,112200.0,0.18007628]
[1757372091171,0.17511342,112210.0,112200.0,0.03183628]
[1757372091300,0.17511342,112210.0,112200.0,0.18007628]
[1757372091716,0.17511342,112210.0,112200.0,0.17993298]
[1757372092497,0.17511342,112210.0,112200.0,0.15319119]
[1757372102106,0.17511342,112210.0,112200.0,0.00495119]
[1757372102225,0.17511342,112210.0,112200.0,0.15319119]
[1757372102835,0.17511342,112210.0,112200.0,0.00495119]
[1757372103041,0.52023146,112210.0,112200.0,0.15319119]
[1757372103286,0.61214745,112210.0,112200.0,0.14825119]
[1757372103711,0.63889218,112210.0,112200.0,0.15148119]
[1757372106007,0.63889218,112210.0,112200.0,0.15345119]
[1757372110005,0.63889218,112210.0,112200.0,0.14825119]
[1757372122805,0.63889218,112210.0,112200.0,1.119e-05]
[1757372123208,0.64088218,112210.0,112200.0,1.119e-05]
[1757372123794,0.63889218,112210.0,112200.0,1.119e-05]
[1757372126038,1.001821,112210.0,112200.0,1.119e-05]
[1757372127775,1.150061,112210.0,112200.0,1.119e-05]
[1757372127956,1.152061,112210.0,112200.0,1.119e-05]
[1757372129825,1.153061,112210.0,112200.0,1.119e-05]
[1757372131214,1.002831,112210.0,112200.0,1.119e-05]
[1757372131482,1.151071,112210.0,112200.0,1.119e-05]
[1757372131694,1.0423772,112210.0,112200.0,1.119e-05]
[1757372131912,1.23118591,112210.0,112200.0,1.119e-05]
[1757372134463,1.23119762,112210.0,112200.0,1.119e-05]
[1757372136447,1.57434737,112210.0,112200.0,1.119e-05]
[1757372136653,0.88804787,112210.0,112200.0,1.119e-05]
[1757372136884,1.57434737,112210.0,112200.0,1.119e-05]
[1757372137198,0.88804787,112210.0,112200.0,1.119e-05]
[1757372137430,1.57434737,112210.0,112200.0,1.119e-05]
[1757372142304,1.57633737,112210.0,112200.0,1.119e-05]
[1757372145000,1.57434737,112210.0,112200.0,1.119e-05]
[1757372145682,1.42610737,112210.0,112200.0,1.119e-05]
[1757372145915,1.08295762,112210.0,112200.0,1.119e-05]
[1757372146109,1.23115762,112210.0,112200.0,1.119e-05]
[1757372146536,0.73980787,112210.0,112200.0,0.00524119]
[1757372146658,1.23115762,112210.0,112200.0,0.00524119]
[1757372147325,1.23115762,112210.0,112200.0,1.119e-05]
[1757372151336,1.19058891,112210.0,112200.0,1.119e-05]
[1757372152859,1.53373866,112210.0,112200.0,1.119e-05]
[1757372155064,0.84743916,112210.0,112200.0,1.119e-05]
[1757372155251,1.53373866,112210.0,112200.0,1.119e-05]
[1757372155702,0.84743916,112210.0,112200.0,1.119e-05]
[1757372155999,1.53373866,112210.0,112200.0,1.119e-05]
[1757372156202,1.62565465,112210.0,112200.0,1.119e-05]
[1757372158913,0.93935515,112210.0,112200.0,1.119e-05]
[1757372159133,1.62565465,112210.0,112200.0,1.119e-05]
[1757372161693,1.47745465,112210.0,112200.0,1.119e-05]
[1757372161833,1.62565465,112210.0,112200.0,1.119e-05]
[1757372163148,1.47745465,112210.0,112200.0,1.119e-05]
[1757372163338,1.1343049,112210.0,112200.0,0.00323119]
[1757372163752,1.1343049,112210.0,112200.0,1.119e-05]
[1757372164419,1.04238891,112210.0,112200.0,1.119e-05]
[1757372166669,1.04238891,112210.0,112200.0,0.00524119]
[1757372166891,1.04040891,112210.0,112200.0,0.00524119]
[1757372167760,1.00086271,112210.0,112200.0,0.00524119]
[1757372167974,0.97992389,112210.0,112200.0,0.00524119]
[1757372171492,0.98190389,112210.0,112200.0,1.119e-05]
[1757372175744,1.13010389,112210.0,112200.0,1.119e-05]
[1757372180596,1.49618246,112210.0,112200.0,1.119e-05]
[1757372183387,0.80988296,112210.0,112200.0,1.119e-05]
[1757372183617,0.80789296,112210.0,112200.0,1.119e-05]
[1757372183835,1.15104271,112210.0,112200.0,1.119e-05]
[1757372187560,1.00284271,112210.0,112200.0,0.00200119]
[1757372187770,1.15108271,112210.0,112200.0,0.00503119]
[1757372188468,1.00284271,112210.0,112200.0,0.00304119]
[1757372188676,1.15108271,112210.0,112200.0,1.119e-05]
[1757372191312,1.19050064,112210.0,112200.0,1.119e-05]
[1757372193977,1.04226064,112210.0,112200.0,0.00503119]
[1757372195721,1.19046064,112210.0,112200.0,0.00503119]
[1757372196514,1.19044013,112210.0,112200.0,0.00503119]
[1757372197099,1.1510222,112210.0,112200.0,0.00503119]
[1757372197309,0.80789296,112210.0,112200.0,0.00503119]
[1757372197521,1.1510222,112210.0,112200.0,0.00503119]
[1757372197726,1.0028222,112210.0,112200.0,0.00503119]
[1757372198551,1.0028222,112210.0,112200.0,1.119e-05]
[1757372199909,1.1510222,112210.0,112200.0,1.119e-05]
[1757372201787,1.0028222,112210.0,112200.0,1.119e-05]
[1757372203749,1.1510222,112210.0,112200.0,1.119e-05]
[1757372209783,1.0028222,112210.0,112200.0,1.119e-05]
[1757372211338,1.04352681,112210.0,112200.0,1.119e-05]
[1757372213987,0.70039757,112210.0,112200.0,1.119e-05]
[1757372214193,1.04352681,112210.0,112200.0,0.00303119]
[1757372216560,0.70039757,112210.0,112200.0,1.119e-05]
[1757372216778,1.04352681,112210.0,112200.0,1.119e-05]
[1757372217390,1.04352681,112210.0,112200.0,0.00303119]
[1757372224047,1.0028222,112210.0,112200.0,0.00303119]
[1757372229220,1.1509822,112210.0,112200.0,0.00303119]
[1757372231103,0.65771296,112210.0,112200.0,0.00515119]
[1757372231343,1.0008422,112210.0,112200.0,0.00515119]
[1757372232891,1.0028222,112210.0,112200.0,0.00515119]
[1757372234876,0.65771296,112210.0,112200.0,0.00515119]
[1757372235118,1.0008422,112210.0,112200.0,0.00515119]
[1757372239528,0.65771296,112210.0,112200.0,0.00515119]
[1757372239745,1.0008422,112210.0,112200.0,0.00515119]
[1757372246718,0.97990338,112210.0,112200.0,0.00515119]
[1757372246916,0.63677414,112210.0,112200.0,0.00515119]
[1757372247132,0.97990338,112210.0,112200.0,0.00515119]
[1757372247849,0.63677414,112210.0,112200.0,0.00515119]
[1757372250338,0.97990338,112210.0,112200.0,0.00515119]
[1757372256538,0.63677414,112210.0,112200.0,0.00515119]
[1757372258402,0.97983619,112210.0,112200.0,0.00515119]
[1757372264130,0.63677414,112210.0,112200.0,0.00515119]
[1757372264346,0.97983619,112210.0,112200.0,0.00515119]
[1757372274197,0.63677414,112210.0,112200.0,0.00515119]
[1757372274519,0.97983619,112210.0,112200.0,0.00515119]
[1757372276369,0.97683619,112210.0,112200.0,0.00515119]
[1757372276823,0.97783619,112210.0,112200.0,0.00515119]
[1757372277034,0.97981619,112210.0,112200.0,0.00515119]
[1757372277235,0.97783619,112210.0,112200.0,0.00515119]
[1757372284133,0.63477414,112210.0,112200.0,0.00515119]
[1757372284341,0.97783619,112210.0,112200.0,0.00515119]
[1757372293024,0.63477414,112210.0,112200.0,0.00515119]
[1757372293236,0.97783619,112210.0,112200.0,0.00515119]
[1757372302849,0.63477414,112210.0,112200.0,0.00515119]
[1757372303094,0.97783619,112210.0,112200.0,0.00515119]
[1757372305531,0.63477414,112210.0,112200.0,0.00515119]
[1757372305705,0.97783619,112210.0,112200.0,0.00515119]
[1757372309159,0.63477414,112210.0,112200.0,0.00515119]
[1757372311099,0.97783619,112210.0,112200.0,0.00515119]
[1757372313344,0.63477414,112210.0,112200.0,0.00515119]
[1757372313549,0.63477414,112210.0,112200.0,0.07355119]
[1757372313756,0.97783619,112210.0,112200.0,0.07355119]
[1757372320426,0.63477414,112210.0,112200.0,0.07355119]
[1757372324239,0.29477414,112210.0,112200.0,0.07355119]
[1757372324374,0.20285815,112210.0,112200.0,0.07577935]
[1757372324584,0.17611342,112210.0,112200.0,0.07577935]
[1757372325207,0.17611342,112210.0,112200.0,0.10252166]
[1757372325436,0.17611342,112210.0,112200.0,0.11120986]
[1757372337337,0.17500862,112210.0,112200.0,0.11120986]
[1757372343640,0.17400862,112210.0,112200.0,0.11220986]
[1757372344161,0.17400862,112210.0,112200.0,0.11165932]
[1757372344921,0.17400862,112210.0,112200.0,0.11065932]
[1757372345357,0.17400862,112210.0,112200.0,0.11165932]
[1757372358342,0.17400862,112210.0,112200.0,0.25961932]
[1757372358565,0.17400862,112210.0,112200.0,0.25739116]
[1757372366803,0.17400862,112210.0,112200.0,0.43564427]
[1757372372594,0.17400862,112210.0,112200.0,0.40890196]
[1757372374165,0.17400862,112210.0,112200.0,0.08268885]
[1757372374401,0.17400862,112210.0,112200.0,0.23287701]
[1757372374612,0.17400862,112210.0,112200.0,0.23064885]
[1757372380518,0.17400862,112210.0,112200.0,0.40890196]
[1757372389790,0.17400862,112210.0,112200.0,0.23064885]
[1757372400831,0.17400862,112210.0,112200.0,0.40890196]
[1757372401047,0.46385686,112230.0,112210.0,0.17823723]
[1757372401260,0.42820547,112230.0,112220.0,0.15522776]
[1757372401916,0.42820547,112230.0,112220.0,0.33344911]
[1757372402168,0.42920547,112230.0,112220.0,0.33122135]
[1757372402378,0.42920547,112230.0,112220.0,0.153]
[1757372402609,0.42920547,112230.0,112220.0,0.15622776]
[1757372403603,0.42820547,112230.0,112220.0,0.15622776]
[1757372404006,0.42820547,112230.0,112220.0,0.15522776]
[1757372405578,0.42820547,112230.0,112220.0,0.153]
[1757372405871,0.42820547,112230.0,112220.0,0.00508]
[1757372406093,0.42820547,112230.0,112220.0,0.153]
[1757372411195,0.77114261,112230.0,112220.0,0.153]
[1757372412153,0.42820547,112230.0,112220.0,0.153]
[1757372412371,0.77114261,112230.0,112220.0,0.153]
[1757372420896,0.42820547,112230.0,112220.0,0.153]
[1757372421814,0.42820547,112230.0,112220.0,0.15316]
[1757372426370,0.42820547,112230.0,112220.0,0.22156]
[1757372427490,0.17820547,112230.0,112220.0,0.22156]
[1757372439807,0.17820547,112230.0,112220.0,0.07348]
[1757372440058,0.52452916,112230.0,112220.0,0.2164]
[1757372440238,0.52312261,112230.0,112220.0,0.2164]
[1757372441850,0.52564261,112230.0,112220.0,0.2164]
[1757372442554,0.52566176,112230.0,112220.0,0.2164]
[1757372442758,0.52314176,112230.0,112220.0,0.2164]
[1757372443391,0.18018547,112230.0,112220.0,0.2164]
[1757372443610,0.52314176,112230.0,112220.0,0.2164]
[1757372444220,0.18018547,112230.0,112220.0,0.2164]
[1757372444426,0.52314176,112230.0,112220.0,0.2164]
[1757372445590,0.18018547,112230.0,112220.0,0.2164]
[1757372445804,0.52314176,112230.0,112220.0,0.2164]
[1757372446400,0.61505775,112230.0,112220.0,0.0684]
[1757372446597,0.61757775,112230.0,112220.0,0.21652]
[1757372448798,0.27210146,112230.0,112220.0,0.21652]
[1757372448983,0.61505775,112230.0,112220.0,0.21652]
[1757372461472,0.96053404,112230.0,112220.0,0.2164]
[1757372462518,0.61757775,112230.0,112220.0,0.2164]
[1757372464119,0.96053404,112230.0,112220.0,0.0684]
[1757372464329,0.96053404,112230.0,112220.0,0.2164]
[1757372465798,0.61757775,112230.0,112220.0,0.2164]
[1757372466007,0.96053404,112230.0,112220.0,0.2164]
[1757372467101,0.96053404,112230.0,112220.0,0.0684]
[1757372467307,1.30053404,112230.0,112220.0,0.2164]
[1757372471700,1.29948679,112230.0,112220.0,0.2164]
[1757372478637,0.17825311,112200.0,112190.0,0.00334]
[1757372478863,0.17825311,112200.0,112190.0,0.2197]
[1757372479081,0.17825311,112200.0,112190.0,0.22186]
[1757372480179,0.17825311,112200.0,112190.0,0.22886]
[1757372480422,0.17825311,112200.0,112190.0,0.22486]
[1757372480638,0.17825311,112200.0,112190.0,0.22886]
[1757372480851,0.17825311,112200.0,112190.0,0.22486]
[1757372481144,0.17825311,112200.0,112190.0,0.22286]
[1757372481569,0.17825311,112200.0,112190.0,0.22386]
[1757372490722,0.17773629,112200.0,112190.0,0.22386]
[1757372493141,0.17773629,112200.0,112190.0,0.25060363]
[1757372521323,0.17972629,112200.0,112190.0,0.10264363]
[1757372521561,0.18113284,112200.0,112190.0,0.21876]
[1757372522211,0.18113284,112200.0,112190.0,0.22398]
[1757372528478,0.17914284,112200.0,112190.0,0.22398]
[1757372534019,0.18113284,112200.0,112190.0,0.22398]
[1757372534238,0.17914284,112200.0,112190.0,0.22398]
[1757372538336,0.18113284,112200.0,112190.0,0.22398]
[1757372538766,0.20588914,112200.0,112190.0,0.22398]
[1757372538978,0.20448259,112200.0,112190.0,0.22398]
[1757372542311,0.20448259,112200.0,112190.0,0.2235472]
[1757372558182,0.17773629,112200.0,112190.0,0.2235472]
[1757372558394,0.2058884,112200.0,112190.0,0.2235472]
[1757372558591,0.20448185,112200.0,112190.0,0.2235472]
[1757372560359,0.20448185,112200.0,112190.0,0.0755872]
[1757372560565,0.20644185,112200.0,112190.0,0.2235472]
[1757372565966,0.20448185,112200.0,112190.0,0.2235472]
[1757372573192,0.20644185,112200.0,112190.0,0.2235472]
[1757372581172,0.20448185,112200.0,112190.0,0.2235472]
[1757372586839,0.20644185,112200.0,112190.0,0.2235472]
[1757372587168,0.20448185,112200.0,112190.0,0.2235472]
[1757372622538,0.02674556,112200.0,112190.0,0.4018162]
[1757372622763,0.18715899,112220.0,112200.0,0.17825311]
[1757372622983,0.21389945,112220.0,112210.0,0.15014796]
[1757372623193,0.21389945,112220.0,112210.0,0.15508796]
[1757372623684,0.21389945,112220.0,112210.0,0.18182754]
[1757372624708,0.21489945,112220.0,112210.0,0.18182754]
[1757372624921,0.21389945,112220.0,112210.0,0.18182754]
[1757372625350,0.21389945,112220.0,112210.0,0.18282754]
[1757372625573,0.17728157,112230.0,112210.0,0.35883681]
[1757372625800,0.17728157,112230.0,112220.0,0.07135]
[1757372626023,0.20506575,112230.0,112220.0,0.24957135]
[1757372626233,0.17832882,112230.0,112220.0,0.25156135]
[1757372627766,0.17832882,112230.0,112220.0,0.07334]
[1757372628001,0.17832882,112230.0,112220.0,0.07556776]
[1757372629112,0.17832882,112230.0,112220.0,0.08465161]
[1757372630407,0.17832882,112230.0,112220.0,0.11138768]
[1757372632287,0.17832882,112230.0,112220.0,0.10915992]
[1757372635523,0.17832882,112230.0,112220.0,0.10007607]
[1757372635663,0.17832882,112230.0,112220.0,0.24811607]
[1757372637491,0.17832882,112230.0,112220.0,0.25682395]
[1757372638911,0.17832882,112230.0,112220.0,0.10007607]
[1757372639157,0.17832882,112230.0,112220.0,0.24807607]
[1757372641234,0.17832882,112230.0,112220.0,0.25694307]
[1757372643660,0.17832882,112230.0,112220.0,0.10007607]
[1757372643901,0.18030882,112230.0,112220.0,0.10007607]
[1757372644120,0.18171537,112230.0,112220.0,0.22134]
[1757372644331,0.20704542,112230.0,112220.0,0.22134]
[1757372645860,0.20506542,112230.0,112220.0,0.22134]
[1757372671154,0.54786079,112230.0,112220.0,0.22134]
[1757372673223,0.52112419,112230.0,112220.0,0.22134]
[1757372673530,0.17832882,112230.0,112220.0,0.22134]
[1757372673747,0.52253074,112230.0,112220.0,0.22134]
[1757372673986,0.52112419,112230.0,112220.0,0.22134]
[1757372674953,0.17832882,112230.0,112220.0,0.22134]
[1757372675167,0.52253074,112230.0,112220.0,0.22134]
[1757372675377,0.52112419,112230.0,112220.0,0.22134]
[1757372680155,0.17832882,112230.0,112220.0,0.22134]
[1757372680360,0.52253074,112230.0,112220.0,0.22134]
[1757372680551,0.52112419,112230.0,112220.0,0.22134]